[Event "FIDE WSTC-50-65 2022"]
[Site "Acqui Terme"]
[Date "2022.06.29"]
[Round "9.9"]
[White "Gruenfeld, Yehuda"]
[Black "Littlewood, Paul E"]
[Result "1/2-1/2"]
[ECO "C99"]
[WhiteElo "2424"]
[BlackElo "2347"]
[Annotator "TA"]
[PlyCount "97"]
[EventDate "2022.06.20"]
[EventType "team-tourn"]
[EventCountry "ITA"]
[SourceTitle "playchess.com"]
[Source "ChessBase"]
[SourceQuality "1"]
[TimeControl "40/5400+30:1800+30"]

{[%evp 29,97,8,38,0,-7,-16,-14,0,14,-1,0,1,0,-6,-4,-6,-8,-4,-8,-23,-22,-38,0,0,0,0,0,0,0,0,0,0,0,0,0,0,0,0,0,0,0,0,0,0,0,0,0,0,0,0,0,0,0,0,0,0,0,0,0,0,0,0,0,0,0,0,0,0,0,0]} 1. e4 {[%emt 0:01:00]} e5 {[%emt 0:01:00]} 2. Nf3 {[%emt 0:00:00]} Nc6 {[%emt 0:00:00]} 3. Bb5 {[%emt 0:00:00]} a6 {[%emt 0:00:00]} 4. Ba4 {[%emt 0:00:00]} Nf6 {[%emt 0:00:30]} 5. O-O {[%emt 0:00:00]} Be7 {[%emt 0:00:00]} 6. Re1 {[%emt 0:00:30]} b5 {[%emt 0:00:00]} 7. Bb3 {[%emt 0:00:00]} d6 {[%emt 0:00:30]} 8. c3 {[%emt 0:00:00][%cal Bc2c3,Bc3d4][%mdl 32]} O-O {[%emt 0:00:30]} 9. h3 {[%emt 0:00:00]} Na5 {[%emt 0:00:30]} 10. Bc2 {[%emt 0:00:00]} c5 {[%emt 0:00:30]} 11. d4 {[%emt 0:00:00]} Qc7 {[%emt 0:01:30]} 12. Nbd2 {[%emt 0:00:00][%cal Bb1d2,Bd2f1,Bf1e3][%mdl 32]} cxd4 {[%emt 0:00:30]} 13. cxd4 {[%emt 0:00:30]} Bd7 {[%emt 0:01:30]} 14. Nf1 {[%emt 0:00:30]} Rac8 {[%emt 0:01:30]} 15. Re2 {[%emt 0:13:30]} Rfe8 {[%emt 0:05:30]} 16. Ne3 {[%emt 0:09:30] C99: Closed Ruy Lopez: Chigorin Defence: 11 d4 Qc7 12 Nbd2 cxd4.} Nc6 {[%emt 0:06:30] [#]} 17. a3 $146 {[%emt 0:01:30]} ({Predecessor:} 17. dxe5 Nxe5 18. Nxe5 dxe5 19. Bb3 Red8 20. Nd5 Nxd5 21. exd5 Bf5 22. Be3 Qd6 23. a4 b4 {½-½ (53) Purgar,I (1944)-Kolaric,S (1827) Sibenik 2007}) 17... exd4 {[%emt 0:14:30]} 18. Nxd4 {[%emt 0:00:30]} Bf8 {[%emt 0:00:30]} 19. Nf3 {[%emt 0:07:30]} Ne5 {[%emt 0:03:30]} (19... Nxe4 $2 20. Bxe4 h6 21. Nd5 $18) 20. Nxe5 {[%emt 0:00:30]} dxe5 {[%emt 0:08:30]} 21. Bb3 {[%emt 0:03:30]} Qb7 {[%emt 0:09:30]} 22. Nd5 {[%emt 0:01:30]} Nxd5 {[%emt 0:00:00]} 23. Bxd5 {[%emt 0:04:30]} Bc6 {[%emt 0:00:00]} 24. Be3 {[%emt 0:00:30]} Bxd5 {[%emt 0:01:30]} 25. exd5 {[%emt 0:02:30]} Bd6 {[%emt 0:01:30]} 26. Rc2 {[%emt 0:04:30] The position is equal.} Rxc2 {[%emt 0:01:30]} 27. Qxc2 {[%emt 0:00:00]} Qxd5 {[%emt 0:10:30]} 28. Rd1 {[%emt 0:00:00]} Qe6 {[%emt 0:00:30]} 29. Qc6 {[%emt 0:00:30][%csl LRa6,LRd6]} Bf8 {[%emt 0:00:30]} 30. Qxe6 {[%emt 0:01:30]} fxe6 $11 {[%emt 0:00:30][%mdl 4096] Endgame KRB-KRB} 31. Rd7 {[%emt 0:00:30]} Rc8 {[%emt 0:02:30]} 32. Ra7 {[%emt 0:01:30]} Rc6 {[%emt 0:02:30]} 33. b4 {[%emt 0:01:30]} h5 {[%emt 0:04:30]} 34. Kf1 {[%emt 0:00:30]} Kh7 {[%emt 0:01:30]} 35. g4 {[%emt 0:00:30]} hxg4 {[%emt 0:00:30]} 36. hxg4 {[%emt 0:00:00]} Kg6 {[%emt 0:00:30]} 37. Ke2 {[%emt 0:00:00]} Bd6 {[%emt 0:10:19]} 38. Kd3 {[%emt 0:01:30]} Kf6 {[%emt 0:00:30]} 39. f3 {[%emt 0:00:30]} Kg6 {[%emt 0:00:21]} 40. Rb7 {[%emt 0:00:00]} Kf6 {[%emt 0:00:00]} 41. Rb6 {[%emt 0:05:00]} Rxb6 {[%emt 0:04:20]} 42. Bxb6 {[%emt 0:00:00] KB-KB} g5 {[%emt 0:07:30]} 43. Ke4 {[%emt 0:00:00]} Kg6 {[%emt 0:00:30]} 44. Bd8 {[%emt 0:00:30]} Bb8 {[%emt 0:00:30]} 45. Be7 {[%emt 0:02:30]} Bc7 {[%emt 0:00:30]} 46. Bc5 {[%emt 0:00:30]} Kf6 {[%emt 0:00:30]} 47. Be3 {[%emt 0:00:30]} Bd6 {[%emt 0:01:30]} 48. Bd2 {[%emt 0:00:30]} Bc7 {[%emt 0:00:30]} 49. Bc3 {[%emt 0:00:00] A rather calm draw.  Weighted Error Value: White=0.04 (flawless) /Black=0.04 (flawless)} 1/2-1/2

[Event "FIDE WSTC-50-65 2022"]
[Site "Acqui Terme"]
[Date "2022.06.29"]
[Round "9.10"]
[White "Stebbings, Anthony J"]
[Black "Bykhovsky, Avigdor"]
[Result "1/2-1/2"]
[ECO "D46"]
[WhiteElo "2297"]
[BlackElo "2387"]
[Annotator "TA"]
[PlyCount "59"]
[EventDate "2022.06.20"]
[EventType "team-tourn"]
[EventCountry "ITA"]
[SourceTitle "playchess.com"]
[Source "ChessBase"]
[SourceQuality "1"]
[TimeControl "40/5400+30:1800+30"]

{[%evp 21,59,12,10,5,15,15,27,24,71,66,75,89,99,81,87,93,131,125,122,125,122,16,25,25,25,32,28,0,0,0,0,0,0,0,0,-13,0,0,0,0]} 1. d4 {[%emt 0:01:00]} d5 {[%emt 0:01:00]} 2. c4 {[%emt 0:00:00]} c6 {[%emt 0:00:30]} 3. Nc3 {[%emt 0:00:00]} Nf6 {[%emt 0:01:30]} 4. e3 {[%emt 0:00:00]} e6 {[%emt 0:00:30]} 5. Nf3 {[%emt 0:00:00]} Nbd7 {[%emt 0:00:30]} 6. Qc2 {[%emt 0:00:30]} Bd6 {[%emt 0:01:30]} 7. Bd3 {[%emt 0:00:00]} O-O {[%emt 0:06:30]} 8. O-O {[%emt 0:00:00]} dxc4 {[%emt 0:06:30]} 9. Bxc4 {[%emt 0:00:00]} b5 {[%emt 0:00:30]} 10. Bd3 {[%emt 0:00:00]} Bb7 {[%emt 0:00:30]} 11. e4 {[%emt 0:00:30]} e5 {[%emt 0:00:30]} 12. h3 {[%emt 0:00:30] D46: Semi-Slav: 5 e3 Nbd7 6 Bd3, Black avoids the Meran.} exd4 {[%emt 0:23:30]} 13. Nxd4 {[%emt 0:00:30]} Nc5 {[%emt 0:00:00]} 14. Rd1 {[%emt 0:05:30] White has an edge.} Nxd3 {[%emt 0:01:00]} (14... Qc7 $11) 15. Rxd3 $16 {[%emt 0:08:30] [#] Threatens to win with Nf5.} Qc7 {[%emt 0:01:30]} 16. Bg5 {[%emt 0:12:30]} Be5 {[%emt 0:07:30]} 17. Nf3 {[%emt 0:08:30] [#]} b4 $146 {[%emt 0:07:30]} ({Predecessor:} 17... Nh5 18. Rad1 Bxc3 19. Rd7 Qb6 20. Qxc3 Bc8 21. R7d6 Be6 22. Nd4 b4 23. Qf3 g6 24. Nxc6 Qb5 25. Bh6 Rfe8 26. g4 {1-0 (26) Ghosh,D (2570)-Raghunandan,K (2416) New Delhi 2017}) 18. Bxf6 {[%emt 0:06:30]} gxf6 {[%emt 0:06:30]} 19. Nxe5 {[%emt 0:09:30]} Qxe5 {[%emt 0:00:30]} 20. Ne2 {[%emt 0:03:30]} c5 {[%emt 0:01:30] [#]} 21. f3 {[%emt 0:02:30]} (21. Ng3 $1 $16) 21... Rad8 {[%emt 0:11:43]} 22. Rad1 {[%emt 0:00:30]} Rxd3 {[%emt 0:00:43]} 23. Rxd3 {[%emt 0:00:00]} f5 $1 {[%emt 0:03:32]} 24. exf5 {[%emt 0:01:00] Black must now prevent f4.} (24. f4 $5 {[%cal Rf4e5]} Qxe4 25. Ng3 $11 (25. Rg3+ Kh8 $11)) 24... Ba6 $1 {[%emt 0:03:55] The position is equal.} 25. Rd2 {[%emt 0:01:30]} Re8 {[%emt 0:00:26]} 26. Nc1 {[%emt 0:00:30]} Qe1+ {[%emt 0:01:58]} 27. Kh2 {[%emt 0:00:30]} Qe5+ {[%emt 0:00:31]} 28. Kg1 {[%emt 0:00:30]} Qe1+ {[%emt 0:00:47][%mdl 1024] Black has compensation.} 29. Kh2 {[%emt 0:00:00]} Qe5+ {[%emt 0:00:33]} 30. Kh1 {[%emt 0:00:00] Weighted Error Value: White=0.13 (very precise) /Black=0.08 (flawless)} 1/2-1/2

[Event "FIDE WSTC-50-65 2022"]
[Site "Acqui Terme"]
[Date "2022.06.29"]
[Round "9.11"]
[White "Birnboim, Nathan"]
[Black "Povah, Nigel E"]
[Result "1-0"]
[ECO "A62"]
[WhiteElo "2383"]
[BlackElo "2201"]
[Annotator "TA"]
[PlyCount "81"]
[EventDate "2022.06.20"]
[EventType "team-tourn"]
[EventCountry "ITA"]
[SourceTitle "playchess.com"]
[Source "ChessBase"]
[SourceQuality "1"]
[TimeControl "40/5400+30:1800+30"]

{[%evp 18,81,21,27,14,0,-9,-15,0,0,0,0,0,0,0,0,4,0,3,10,13,10,6,4,18,14,22,26,14,0,0,10,34,20,45,39,59,47,59,52,80,75,92,73,133,116,136,100,116,81,279,201,229,226,298,287,290,112,106,115,210,192,737,718,1158,1127]} 1. d4 {[%emt 0:01:00]} Nf6 {[%emt 0:01:00]} 2. c4 {[%emt 0:00:00]} e6 {[%emt 0:00:00]} 3. g3 {[%emt 0:00:00]} c5 {[%emt 0:00:00]} 4. d5 {[%emt 0:00:00]} exd5 {[%emt 0:00:00]} 5. cxd5 {[%emt 0:00:00]} d6 {[%emt 0:00:00]} 6. Nc3 {[%emt 0:00:00]} g6 {[%emt 0:00:30]} 7. Bg2 {[%emt 0:00:00]} Bg7 {[%emt 0:00:00]} 8. Nf3 {[%emt 0:00:30]} O-O {[%emt 0:00:00]} 9. O-O {[%emt 0:00:00]} Re8 {[%emt 0:00:30]} 10. Bf4 {[%emt 0:00:00]} Bf5 {[%emt 0:00:30] is currently scoring better than 10...a6. A62: Modern Benoni: Fianchetto Variation without early ...Nbd7.} 11. Nd2 {[%emt 0:03:30]} Nh5 {[%emt 0:01:30]} 12. Be3 {[%emt 0:00:30]} a6 {[%emt 0:13:30] The position is equal.} 13. a4 {[%emt 0:02:30]} Nd7 {[%emt 0:03:30]} 14. Nc4 {[%emt 0:13:30]} Ne5 {[%emt 0:01:30]} 15. Nxe5 {[%emt 0:01:30]} Bxe5 {[%emt 0:01:30] [#]} 16. Qd2 $146 {[%emt 0:01:30]} ({Predecessor:} 16. Bd2 Qd7 17. Re1 Bh3 18. Bf3 Nf6 19. a5 Rab8 20. Na4 h5 21. Bc3 h4 22. Qd3 {0-1 (78) Krylov,I (2339)-Kovalenko,I (2659) Chess.com INT 2017}) 16... Bd7 {[%emt 0:11:30]} 17. a5 {[%emt 0:08:30]} b5 {[%emt 0:07:30]} 18. axb6 $1 {[%emt 0:02:30]} Qxb6 {[%emt 0:00:30]} 19. Ra2 {[%emt 0:00:30]} f5 {[%emt 0:07:30]} 20. Rfa1 {[%emt 0:01:30]} Bg7 {[%emt 0:14:30]} 21. Bh6 {[%emt 0:02:30]} Bh8 {[%emt 0:05:30]} 22. h3 {[%emt 0:06:30]} Nf6 {[%emt 0:01:30]} 23. Qd3 {[%emt 0:08:30][%cal Ra2a6]} Bc8 {[%emt 0:06:30]} 24. Qc2 {[%emt 0:16:30]} Ra7 {[%emt 0:07:19]} 25. Bd2 {[%emt 0:07:30][%cal Bh6d2,Bd2a5,Ba5b4][%mdl 32]} Rae7 {[%emt 0:05:13]} 26. e3 {[%emt 0:01:30]} Bb7 {[%emt 0:00:03]} 27. Rd1 {[%emt 0:03:30]} Bg7 {[%emt 0:02:13]} 28. Ne2 {[%emt 0:03:44]} Qd8 {[%emt 0:07:04]} (28... Bxd5 $2 29. Bxd5+ Nxd5 30. Qc4 $18) 29. Ba5 {[%emt 0:01:32]} Qa8 {[%emt 0:00:11]} 30. Nc3 {[%emt 0:02:15]} Kh8 {[%emt 0:00:29]} (30... Bc8 $142) 31. b4 $16 {[%emt 0:03:39]} Qc8 {[%emt 0:01:50]} 32. Na4 {[%emt 0:02:23][%cal Rb4c5]} cxb4 {[%emt 0:00:57]} 33. Qb3 {[%emt 0:01:00]} Nd7 $2 {[%emt 0:01:23] [#]} (33... Ne4 $16) 34. Bxb4 {[%emt 0:01:05]} Be5 {[%emt 0:00:33]} 35. Rc2 {[%emt 0:00:39]} Qa8 {[%emt 0:00:36]} 36. Qa3 {[%emt 0:02:43]} Qb8 {[%emt 0:00:37]} 37. f4 $2 {[%emt 0:01:09]} (37. Nb2 $18 {and White stays clearly on top.}) 37... a5 {[%emt 0:00:21] [#]} 38. Bd2 $36 {[%emt 0:01:08][%mdl 2048] White is on the roll. White is much more active.} ({But not} 38. fxe5 $6 axb4 39. Qxb4 Nxe5 $11) ({Much worse is} 38. Bxa5 $6 Bg7 $14) 38... Bf6 {[%emt 0:00:24]} (38... Bg7 $16) 39. Rb1 $18 {[%emt 0:00:09]} Qa7 $2 {[%emt 0:00:42]} (39... g5) 40. Qxd6 {[%emt 0:00:00]} Ba6 {[%emt 0:00:00]} 41. Rc7 {[%emt 0:01:34] Weighted Error Value: White=0.13 (very precise) /Black=0.27 (precise)} 1-0

[Event "FIDE WSTC-50-65 2022"]
[Site "Acqui Terme"]
[Date "2022.06.29"]
[Round "9.12"]
[White "Snape, Ian L"]
[Black "Berkovich, Mark A"]
[Result "1/2-1/2"]
[ECO "A21"]
[WhiteElo "2112"]
[BlackElo "2337"]
[Annotator "TA"]
[PlyCount "45"]
[EventDate "2022.06.20"]
[EventType "team-tourn"]
[EventCountry "ITA"]
[SourceTitle "playchess.com"]
[Source "ChessBase"]
[SourceQuality "1"]
[TimeControl "40/5400+30:1800+30"]

{[%evp 9,45,18,17,3,10,0,8,8,11,5,34,0,21,-13,-8,-10,-16,-18,-9,-20,-16,-16,-22,-23,-7,-18,0,0,6,10,127,-41,0,0,0,0,0,2]} 1. c4 {[%emt 0:01:00]} e5 {[%emt 0:01:00]} 2. Nc3 {[%emt 0:00:00]} Bb4 {[%emt 0:00:00]} 3. Nd5 {[%emt 0:00:00]} Be7 {[%emt 0:00:00]} 4. d4 {[%emt 0:01:30]} d6 {[%emt 0:00:30]} 5. Nf3 {[%emt 0:02:30][%cal Bg1f3,Bf3e1,Be1g2][%mdl 32]} Nf6 {[%emt 0:00:30]} 6. Nxe7 {[%emt 0:01:30] A21: English Opening: 1...e5 2 Nc3.} Qxe7 {[%emt 0:00:30]} 7. e3 {[%emt 0:00:30]} O-O {[%emt 0:07:30]} 8. Be2 {[%emt 0:00:30] [#]} Re8 $146 {[%emt 0:01:30]} ({Predecessor:} 8... Bg4 9. h3 Bh5 10. g4 Bg6 11. b3 Nc6 12. Bb2 Rfe8 13. Rg1 Ne4 14. d5 Nb4 {½-½ (53) Van Wely,L (2612)-Mchedlishvili,M (2587) Abu Dhabi 2021}) 9. O-O {[%emt 0:03:30]} e4 {[%emt 0:03:30]} 10. Ne1 {[%emt 0:01:30]} Bf5 {[%emt 0:02:30]} 11. f4 {[%emt 0:10:30]} exf3 $1 {[%emt 0:01:30]} 12. gxf3 {[%emt 0:02:30]} c5 {[%emt 0:08:30]} 13. d5 {[%emt 0:05:30]} Nbd7 {[%emt 0:06:30]} 14. Rf2 {[%emt 0:06:30]} Ne5 {[%emt 0:05:30]} 15. Ng2 {[%emt 0:06:30]} Ng6 {[%emt 0:07:30]} 16. Bd2 {[%emt 0:02:30]} Bh3 {[%emt 0:00:30][%cal Ob7b5]} 17. Bd3 {[%emt 0:07:30]} b5 {[%emt 0:07:30]} 18. cxb5 {[%emt 0:06:30]} Nxd5 {[%emt 0:10:30]} 19. Be4 {[%emt 0:01:30]} Qe5 {[%emt 0:02:30] [#]} (19... Qb7 $1 $11 {remains equal.}) 20. Bc1 $2 {[%emt 0:02:30]} (20. Be1 $1 $16 Nb6 21. Bxa8 Rxa8 22. Bc3) 20... Be6 {[%emt 0:12:30]} 21. Bxg6 {[%emt 0:05:30] The position is equal.} hxg6 {[%emt 0:00:48]} 22. e4 {[%emt 0:00:30]} Nc7 {[%emt 0:02:14]} 23. Bf4 {[%emt 0:01:30] Weighted Error Value: White=0.22 (precise) /Black=0.15 (very precise)} 1/2-1/2

[Event "FIDE WSTC-50-65 2022"]
[Site "Acqui Terme"]
[Date "2022.06.29"]
[Round "9.13"]
[White "Knaak, Rainer"]
[Black "Thuesen, Mogens"]
[Result "0-1"]
[ECO "D35"]
[WhiteElo "2479"]
[BlackElo "2255"]
[Annotator "TA"]
[PlyCount "84"]
[EventDate "2022.06.20"]
[EventType "team-tourn"]
[EventCountry "ITA"]
[SourceTitle "playchess.com"]
[Source "ChessBase"]
[SourceQuality "1"]
[TimeControl "40/5400+30:1800+30"]

{[%evp 18,84,2,3,14,8,61,62,51,58,69,6,12,11,37,27,51,18,35,3,0,0,0,10,39,-22,-15,-20,0,0,0,0,0,0,0,0,0,0,0,0,0,0,0,-6,-17,-39,0,0,0,-8,0,-48,-11,-337,-314,-606,-607,-593,-588,-536,-521,-773,-771,-760,-735,-718,-721,-669,-622]} 1. d4 {[%emt 0:01:00]} d5 {[%emt 0:01:00]} 2. c4 {[%emt 0:00:00]} e6 {[%emt 0:00:00]} 3. Nc3 {[%emt 0:00:00]} Nf6 {[%emt 0:00:00]} 4. cxd5 {[%emt 0:00:30]} exd5 {[%emt 0:00:30]} 5. Bg5 {[%emt 0:00:30]} c6 {[%emt 0:00:30]} 6. e3 {[%emt 0:00:00]} Bd6 {[%emt 0:00:00]} 7. Bd3 {[%emt 0:00:00]} O-O {[%emt 0:00:00]} 8. Nf3 {[%emt 0:04:30]} Re8 {[%emt 0:01:30]} 9. Qc2 {[%emt 0:00:30]} h6 {[%emt 0:00:30]} 10. Bh4 {[%emt 0:00:30]} a5 {[%emt 0:05:30] D35: Queen's Gambit Declined: Exchange Variation.} 11. O-O {[%emt 0:01:30]} Na6 {[%emt 0:09:30]} ({Black should try} 11... Bg4 $11) 12. a3 $14 {[%emt 0:00:30]} Bg4 {[%emt 0:00:30] White is slightly better.} 13. Nd2 {[%emt 0:05:30]} Bd7 {[%emt 0:10:30][%cal Od6h2]} 14. Bg3 {[%emt 0:25:30]} (14. h3 $14) 14... Bxg3 $11 {[%emt 0:00:30]} 15. hxg3 {[%emt 0:00:00] [#]} Ng4 $146 {[%emt 0:12:30]} ({Predecessor:} 15... Nc7 16. Na4 Ne6 17. b4 Ng4 18. Nf3 Ng5 19. Nc5 Bc8 20. b5 Qf6 21. Be2 Bf5 {1-0 (42) Marcinczyk,M (1886)-Rosen,E (2353) Chess.com INT 2020}) 16. Rfe1 {[%emt 0:02:00]} Qf6 {[%emt 0:07:30]} 17. Nf1 {[%emt 0:00:30]} h5 {[%emt 0:01:30]} 18. f3 {[%emt 0:06:30]} Nh6 {[%emt 0:01:30]} 19. Qf2 {[%emt 0:02:30]} Nc7 {[%emt 0:07:30]} 20. e4 {[%emt 0:06:30]} Qg6 {[%emt 0:01:30]} 21. Ne2 {[%emt 0:04:30]} ({Better is} 21. Ne3 $14) 21... dxe4 {[%emt 0:01:30]} 22. Nf4 {[%emt 0:07:30]} Qd6 {[%emt 0:04:30]} 23. Bxe4 {[%emt 0:02:30]} h4 {[%emt 0:03:30]} 24. Qd2 {[%emt 0:11:00]} hxg3 {[%emt 0:07:30]} 25. Nxg3 {[%emt 0:01:44]} Ne6 {[%emt 0:00:30]} 26. Nfe2 {[%emt 0:00:40]} c5 {[%emt 0:03:30][%cal Rc5d4]} 27. d5 {[%emt 0:01:20]} Nd4 {[%emt 0:00:30]} 28. Nxd4 {[%emt 0:06:52] [#] Ndf5 is the strong threat.} Qxg3 {[%emt 0:00:30]} 29. Ne2 {[%emt 0:00:05]} Qd6 {[%emt 0:05:43]} 30. a4 {[%emt 0:01:41]} Re5 {[%emt 0:01:37]} 31. Nc3 {[%emt 0:00:27]} Rae8 {[%emt 0:02:52]} (31... c4 $5 {[%cal Re5h5]}) 32. Bc2 {[%emt 0:00:53]} Bf5 {[%emt 0:01:19] And now ...Rxe1+ would win.} 33. Bxf5 {[%emt 0:01:19]} Nxf5 {[%emt 0:00:19][%cal Bh6f5,Bf5d4,Bd4e2][%mdl 32]} 34. Ne4 {[%emt 0:00:16]} (34. Rad1 $11) 34... Qg6 {[%emt 0:00:55] White should prevent ...Nd4.} (34... Qd8 $5 {[%cal Rf5d4]} 35. Nc3 Ne3 $17) 35. Nf2 $2 {[%emt 0:04:26][%mdl 8192] Now White is beyond hope.} (35. d6 $11 Nd4 36. Kf2) 35... Nd4 $19 {[%emt 0:04:38] ( -> ...Nxf3+)} 36. Ng4 $2 {[%emt 0:00:35]} (36. Kf1 Qa6+ 37. Kg1) 36... Re2 {[%emt 0:00:10] Black is clearly winning.} 37. Rxe2 {[%emt 0:01:26]} Rxe2 {[%emt 0:00:06]} ({Worse is} 37... Nxe2+ 38. Kf2 $11) 38. Qf4 {[%emt 0:01:14]} f5 {[%emt 0:01:03]} 39. Ne3 {[%emt 0:00:05] [#]} Rxg2+ $3 {[%emt 0:00:59][%mdl 512]} 40. Nxg2 {[%emt 0:00:00]} Ne2+ {[%emt 0:00:00]} 41. Kf2 {[%emt 0:04:57]} Nxf4 {[%emt 0:00:49]} 42. Nxf4 {[%emt 0:00:30]} Qd6 {Weighted Error Value: White=0.48/Black=0.09 (flawless)} 0-1

[Event "FIDE WSTC-50-65 2022"]
[Site "Acqui Terme"]
[Date "2022.06.29"]
[Round "9.14"]
[White "Kolbak, Jens"]
[Black "Chevelevitch, Evgueni"]
[Result "1/2-1/2"]
[ECO "D02"]
[WhiteElo "2155"]
[BlackElo "2369"]
[Annotator "TA"]
[PlyCount "37"]
[EventDate "2022.06.20"]
[EventType "team-tourn"]
[EventCountry "ITA"]
[SourceTitle "playchess.com"]
[Source "ChessBase"]
[SourceQuality "1"]
[TimeControl "40/5400+30:1800+30"]

{[%evp 9,37,-6,-2,-25,10,12,20,20,14,23,19,13,22,0,0,0,-7,-11,-11,-10,0,0,0,0,-4,-11,0,-3,0,-7]} 1. d4 {[%emt 0:01:00]} Nf6 {[%emt 0:01:00]} 2. Nf3 {[%emt 0:00:00]} g6 {[%emt 0:00:00]} 3. Nbd2 {[%emt 0:00:00]} d5 {[%emt 0:03:00]} 4. e3 {[%emt 0:00:30]} Bf5 {[%emt 0:03:30] [#]} 5. Ne5 $146 {[%emt 0:03:30]} ({Predecessor:} 5. Bd3 Ne4 6. Nh4 e6 7. Nxf5 gxf5 8. c4 c6 9. cxd5 cxd5 10. g4 Qh4 11. Qa4+ Nc6 12. Nxe4 fxe4 {0-1 (33) Mikadze,M (2240)-Alaverdyan,G (2355) Poti 2014}) 5... Nbd7 {[%emt 0:06:30]} 6. Bd3 {[%emt 0:09:30] D02: 1 d4 d5 2 Nf3 sidelines, including 2...Nf6 3 g3 and 2...Nf6 3 Bf4.} Bxd3 {[%emt 0:01:30]} 7. cxd3 {[%emt 0:03:30]} c6 {[%emt 0:12:30]} 8. O-O {[%emt 0:01:30]} Nxe5 {[%emt 0:04:30]} 9. dxe5 {[%emt 0:00:00]} Nd7 {[%emt 0:00:00]} 10. d4 {[%emt 0:02:00] The position is equal.} e6 {[%emt 0:01:00]} 11. Nf3 {[%emt 0:15:30]} Be7 {[%emt 0:02:30]} 12. b3 {[%emt 0:05:30]} O-O {[%emt 0:01:30]} 13. Bb2 {[%emt 0:00:30]} c5 {[%emt 0:05:30]} 14. Qe2 {[%emt 0:07:30]} Rc8 {[%emt 0:05:30]} 15. Rfc1 {[%emt 0:03:30]} Qa5 {[%emt 0:02:30][%cal Oc5c4]} 16. Bc3 {[%emt 0:02:30]} Qa3 {[%emt 0:06:30]} 17. Bb2 {[%emt 0:00:30]} Qa5 {[%emt 0:00:30][%cal Oc5c4]} 18. Bc3 {[%emt 0:00:00]} Qa3 {[%emt 0:00:30]} 19. Bb2 {[%emt 0:00:00] A rather calm draw.  Weighted Error Value: White=0.05 (flawless) /Black=0.06 (flawless)} 1/2-1/2

[Event "FIDE WSTC-50-65 2022"]
[Site "Acqui Terme"]
[Date "2022.06.29"]
[Round "9.15"]
[White "Kiefer, Gerhard"]
[Black "Sonderstrup, Bjarne"]
[Result "1-0"]
[ECO "B33"]
[WhiteElo "2224"]
[BlackElo "2049"]
[Annotator "NA RC"]
[PlyCount "57"]
[EventDate "2022.06.20"]
[EventType "team-tourn"]
[EventCountry "ITA"]
[SourceTitle "playchess.com"]
[Source "ChessBase"]
[SourceQuality "1"]
[TimeControl "40/5400+30:1800+30"]

1. e4 {[%emt 0:01:00]} c5 {[%emt 0:01:00]} 2. Nf3 {[%emt 0:00:00]} Nc6 {[%emt 0:00:00]} 3. d4 {[%emt 0:00:00]} cxd4 {[%emt 0:00:00]} 4. Nxd4 {[%emt 0:00:00]} Nf6 {[%emt 0:00:30]} 5. Nc3 {[%emt 0:00:00]} e5 {[%emt 0:00:00]} 6. Ndb5 {[%emt 0:00:30]} d6 {[%emt 0:00:00]} 7. Bg5 {[%emt 0:00:00]} a6 {[%emt 0:00:30]} 8. Na3 {[%emt 0:00:00]} Be6 {[%emt 0:00:30]} 9. Nc4 {[%emt 0:00:30]} Rc8 {[%emt 0:00:30]} 10. Bxf6 {[%emt 0:01:30]} gxf6 {[%emt 0:00:30]} 11. Bd3 {[%emt 0:01:30]} Ne7 {[%emt 0:13:30]} 12. Ne3 {[%emt 0:02:30]} Bh6 {[%emt 0:03:30]} 13. Ng4 {[%emt 0:05:30]} Bg7 {[%emt 0:05:30]} 14. Qf3 {[%emt 0:00:30]} Nc6 {[%emt 0:04:30]} 15. O-O {[%emt 0:03:30]} Nd4 {[%emt 0:05:30]} 16. Qg3 $14 {[%emt 0:00:30]} Kf8 {[%emt 0:06:30]} 17. Ne3 {[%emt 0:06:30]} h5 {[%emt 0:02:30]} 18. Qh4 {[%emt 0:00:30]} Kg8 {[%emt 0:16:30]} 19. Ncd5 {[%emt 0:03:30]} Bxd5 {[%emt 0:11:30]} 20. Nxd5 {[%emt 0:05:30]} Ne6 {[%emt 0:08:41]} 21. g3 {[%emt 0:17:30]} Rh6 {[%emt 0:06:20]} 22. f4 {[%emt 0:01:30]} exf4 {[%emt 0:01:12]} 23. gxf4 {[%emt 0:00:30]} Rg6+ {[%emt 0:02:00]} 24. Kh1 {[%emt 0:00:30]} Rg4 {[%emt 0:00:54]} 25. Qxh5 {[%emt 0:00:30]} f5 {[%emt 0:00:43]} 26. Qxf5 {[%emt 0:01:30]} Qh4 {[%emt 0:03:58]} 27. Rg1 {[%emt 0:00:30]} Rxf4 {[%emt 0:01:31]} 28. Nxf4 {[%emt 0:00:30]} Qxf4 {[%emt 0:00:14]} 29. Raf1 {[%emt 0:01:30]} 1-0

[Event "FIDE WSTC-50-65 2022"]
[Site "Acqui Terme"]
[Date "2022.06.29"]
[Round "9.16"]
[White "Nielsen, Christian Volmer"]
[Black "Kierzek, Matthias"]
[Result "1/2-1/2"]
[ECO "B13"]
[WhiteElo "1987"]
[BlackElo "2224"]
[Annotator "NA RC"]
[PlyCount "48"]
[EventDate "2022.06.20"]
[EventType "team-tourn"]
[EventCountry "ITA"]
[SourceTitle "playchess.com"]
[Source "ChessBase"]
[SourceQuality "1"]
[TimeControl "40/5400+30:1800+30"]

1. e4 {[%emt 0:01:00]} c6 {[%emt 0:01:00]} 2. d4 {[%emt 0:00:00]} d5 {[%emt 0:00:00]} 3. exd5 {[%emt 0:00:00]} cxd5 {[%emt 0:00:00]} 4. c4 {[%emt 0:00:30]} Nf6 {[%emt 0:00:00]} 5. Nc3 {[%emt 0:00:00]} Nc6 {[%emt 0:00:00]} 6. Nf3 {[%emt 0:02:00]} Bg4 {[%emt 0:00:30]} 7. Be2 {[%emt 0:02:30]} e6 {[%emt 0:03:30]} 8. Be3 {[%emt 0:07:30]} Be7 {[%emt 0:05:30]} 9. O-O {[%emt 0:00:30]} O-O {[%emt 0:01:30]} 10. Ne5 {[%emt 0:04:30]} Bxe2 $1 {[%emt 0:02:30]} 11. Qxe2 {[%emt 0:01:30]} Rc8 {[%emt 0:01:30]} 12. Rac1 {[%emt 0:03:30]} (12. Nxc6 $11 bxc6 13. c5) 12... dxc4 {[%emt 0:09:30]} 13. Rfd1 {[%emt 0:00:30]} Na5 $11 {[%emt 0:05:30]} 14. Rc2 {[%emt 0:16:30]} Nd5 {[%emt 0:18:30]} 15. Bc1 {[%emt 0:08:30]} a6 {[%emt 0:03:30]} 16. f4 {[%emt 0:02:30]} b5 {[%emt 0:00:30]} 17. Qf3 {[%emt 0:03:30]} b4 {[%emt 0:03:30]} 18. Ne4 {[%emt 0:01:30]} b3 {[%emt 0:11:30]} 19. axb3 {[%emt 0:00:30]} cxb3 {[%emt 0:00:30]} 20. Rf2 {[%emt 0:02:30]} f5 {[%emt 0:07:30]} 21. Ng5 {[%emt 0:06:30]} Bxg5 {[%emt 0:00:30]} 22. fxg5 {[%emt 0:00:00]} g6 {[%emt 0:00:30]} 23. h4 {[%emt 0:01:00]} Nc4 {[%emt 0:01:30]} 24. Nxc4 {[%emt 0:03:30]} Rxc4 {[%emt 0:00:30]} 1/2-1/2